bitfinex-derivatives/quotes_BTCF0:USTF0_20250830
["timestamp","ask_amount","ask_price","bid_price","bid_amount"]
[1756519067811,0.0928551,107680.0,107670.0,0.55047837]
[1756519068107,0.0928551,107680.0,107670.0,0.91591837]
[1756519068714,0.0928551,107680.0,107670.0,1.25351275]
[1756519069416,0.1430012,107690.0,107680.0,0.05432]
[1756519069619,0.1430012,107690.0,107680.0,0.50311034]
[1756519069822,0.1430012,107690.0,107680.0,0.55047837]
[1756519070617,0.1430012,107690.0,107680.0,0.10168803]
[1756519070919,0.1440012,107690.0,107680.0,0.55047837]
[1756519071819,0.1440012,107690.0,107680.0,0.10168803]
[1756519072118,0.1440012,107690.0,107680.0,0.55047837]
[1756519072523,0.5048012,107690.0,107680.0,0.55047837]
[1756519073620,0.1440012,107690.0,107680.0,0.55047837]
[1756519074418,0.001,107690.0,107680.0,0.80534323]
[1756519074717,0.001,107690.0,107680.0,1.70292391]
[1756519075217,0.07388682,107700.0,107690.0,0.05432]
[1756519075425,0.13237914,107710.0,107700.0,0.05432]
[1756519075625,0.15353914,107710.0,107700.0,0.46134019]
[1756519075812,0.18352914,107710.0,107700.0,0.10168803]
[1756519076017,0.18352914,107710.0,107700.0,0.46134019]
[1756519076714,0.18352914,107710.0,107700.0,0.06970803]
[1756519076915,0.54432914,107710.0,107700.0,0.46134019]
[1756519077322,0.54432914,107710.0,107700.0,0.10168803]
[1756519078324,0.54732914,107710.0,107700.0,0.10168803]
[1756519078519,0.54732914,107710.0,107700.0,0.55135454]
[1756519078715,0.18652914,107710.0,107700.0,0.55135454]
[1756519079123,0.54732914,107710.0,107700.0,0.10168803]
[1756519079426,0.54732914,107710.0,107700.0,0.05432]
[1756519080128,0.54732914,107710.0,107700.0,0.10168803]
[1756519080527,0.18652914,107710.0,107700.0,0.91215454]
[1756519080733,0.15653914,107710.0,107700.0,0.91215454]
[1756519081027,0.04254654,107710.0,107700.0,2.25267454]
[1756519081218,0.1228161,107720.0,107710.0,0.03141]
[1756519081424,0.1437061,107720.0,107710.0,0.50276651]
[1756519081724,0.1437061,107720.0,107710.0,0.10046803]
[1756519081916,0.2437061,107720.0,107710.0,0.10046803]
[1756519082114,0.2437061,107720.0,107710.0,1.25376384]
[1756519082115,0.1,107720.0,107710.0,1.25376384]
[1756519082339,0.04998,107740.0,107730.0,0.0531]
[1756519082627,0.04998,107740.0,107730.0,0.86356651]
[1756519082824,0.04998,107740.0,107730.0,0.46126803]
[1756519083020,0.04998,107740.0,107730.0,0.91093454]
[1756519083217,0.04998,107740.0,107730.0,0.46126803]
[1756519083417,0.02089,107740.0,107730.0,0.91093454]
[1756519083619,0.38989,107750.0,107740.0,0.0531]
[1756519083620,0.41078,107750.0,107740.0,0.0531]
[1756519083914,0.41078,107750.0,107740.0,0.86356651]
[1756519083915,0.04998,107750.0,107740.0,0.86356651]
[1756519084116,0.04998,107750.0,107740.0,0.91093454]
[1756519084524,0.04998,107750.0,107740.0,0.46126803]
[1756519085026,0.08356703,107750.0,107740.0,0.46126803]
[1756519085324,0.18656703,107750.0,107740.0,0.46126803]
[1756519086523,0.08656703,107750.0,107740.0,0.46126803]
[1756519086926,0.18656703,107750.0,107740.0,0.46126803]
[1756519087224,0.18656703,107750.0,107740.0,0.91093454]
[1756519087424,0.15747703,107750.0,107740.0,0.91093454]
[1756519087827,0.05747703,107750.0,107740.0,0.91093454]
[1756519088522,0.05447703,107750.0,107740.0,0.91093454]
[1756519088726,0.08456703,107750.0,107740.0,0.91093454]
[1756519089621,0.03458703,107750.0,107740.0,0.91093454]
[1756519089922,0.03458703,107750.0,107740.0,1.16093454]
[1756519090115,0.12738193,107750.0,107740.0,0.71126803]
[1756519090315,0.12738193,107750.0,107740.0,1.16093454]
[1756519090526,0.12738193,107750.0,107740.0,0.71590803]
[1756519090723,0.12738193,107750.0,107740.0,1.16557454]
[1756519091822,0.12738193,107750.0,107740.0,0.71590803]
[1756519092222,0.12738193,107750.0,107740.0,1.16557454]
[1756519092434,0.03458703,107750.0,107740.0,0.71590803]
[1756519092623,0.03458703,107750.0,107740.0,1.16557454]
[1756519092824,0.12738193,107750.0,107740.0,1.16557454]
[1756519095635,0.12738193,107750.0,107740.0,0.71590803]
[1756519095838,0.12738193,107750.0,107740.0,1.16557454]
[1756519097230,0.03458703,107750.0,107740.0,1.00837804]
[1756519097742,0.00053703,107750.0,107740.0,1.25837804]
[1756519098837,0.03278965,107760.0,107750.0,0.0531]
[1756519099039,0.121872,107770.0,107750.0,2.00135151]
[1756519099040,0.092782,107770.0,107750.0,2.00135151]
[1756519099231,0.41003073,107800.0,107770.0,0.03141]
[1756519099432,0.21088313,107800.0,107790.0,0.0531]
[1756519099738,0.21088313,107800.0,107790.0,0.41219794]
[1756519099934,0.24435313,107800.0,107790.0,0.41219794]
[1756519100134,0.24435313,107800.0,107790.0,0.77299794]
[1756519100334,0.24435313,107800.0,107790.0,0.4139]
[1756519100534,0.49435313,107800.0,107790.0,0.77299794]
[1756519100939,0.52666005,107800.0,107790.0,0.77299794]
[1756519101439,0.52666005,107800.0,107790.0,0.4139]
[1756519101636,0.53166005,107800.0,107790.0,0.4139]
[1756519102138,0.05436,107790.0,107780.0,0.02169]
[1756519102333,0.88663989,107790.0,107780.0,0.02169]
[1756519102736,0.88663989,107790.0,107770.0,0.07402151]
[1756519102737,0.05436,107780.0,107770.0,0.07402151]
[1756519102935,0.43773169,107780.0,107770.0,0.12138954]
[1756519103136,0.43773169,107780.0,107770.0,0.06905803]
[1756519104433,0.05436,107780.0,107770.0,0.54937623]
[1756519104637,0.02089,107780.0,107770.0,0.91017623]
[1756519105131,0.05436,107780.0,107770.0,0.54937623]
[1756519105534,0.05836,107780.0,107770.0,0.54937623]
[1756519106836,0.1511291,107780.0,107770.0,0.10046803]
[1756519108348,0.42379574,107780.0,107770.0,0.0531]
[1756519108548,0.42379489,107780.0,107770.0,0.0531]
[1756519109242,0.36943489,107780.0,107770.0,0.0531]
[1756519109448,0.11943489,107780.0,107770.0,0.91017623]
[1756519109648,0.0967691,107780.0,107770.0,0.91017623]
[1756519109850,0.0967691,107780.0,107770.0,1.97909623]
[1756519110542,0.0967691,107780.0,107770.0,1.98372623]
[1756519111348,0.11946008,107780.0,107770.0,1.98372623]
[1756519112848,0.11946008,107780.0,107770.0,1.53481803]
[1756519113149,0.11946008,107780.0,107770.0,1.98372623]
[1756519113548,0.11946008,107780.0,107770.0,1.53481803]
[1756519113742,0.11946008,107780.0,107770.0,1.98372623]
[1756519114650,0.17422008,107780.0,107770.0,0.91480623]
[1756519114851,0.17422008,107780.0,107770.0,1.16569803]
[1756519115048,0.17422008,107780.0,107770.0,0.10509803]
[1756519115846,1.23392828,107780.0,107770.0,0.07368803]
[1756519116348,1.03814376,107780.0,107770.0,0.07368803]
[1756519116547,1.05370376,107780.0,107770.0,0.07368803]
[1756519116742,1.05370376,107780.0,107770.0,0.00463]
[1756519117051,2.11286376,107780.0,107770.0,0.00463]
[1756519118453,2.12258376,107780.0,107770.0,0.02736]
[1756519118752,2.12010376,107780.0,107770.0,0.02736]
[1756519119049,0.61451556,107780.0,107770.0,0.05859]
[1756519119245,2.11710376,107780.0,107770.0,0.05859]
[1756519119647,1.66819556,107780.0,107770.0,0.05859]
[1756519120049,2.11710376,107780.0,107770.0,0.05859]
[1756519121052,2.11710376,107780.0,107770.0,0.02736]
[1756519121454,1.06342376,107780.0,107770.0,0.02736]
[1756519121749,2.11534376,107780.0,107770.0,0.02736]
[1756519122142,2.11534376,107780.0,107770.0,0.00463]
[1756519123053,2.21534376,107780.0,107770.0,0.00463]
[1756519123955,0.0927778,107770.0,107760.0,0.05396]
[1756519124156,0.4788578,107770.0,107760.0,0.05396]
[1756519124358,0.4788578,107770.0,107760.0,0.10132803]
[1756519124557,0.927766,107770.0,107760.0,0.10132803]
[1756519125054,0.928766,107770.0,107760.0,0.10132803]
[1756519125455,0.4798578,107770.0,107760.0,0.10132803]
[1756519125653,0.1190578,107770.0,107760.0,0.10132803]
[1756519125855,0.1190578,107770.0,107760.0,0.55023623]
[1756519126060,0.4798578,107770.0,107760.0,0.10132803]
[1756519128054,0.1190578,107770.0,107760.0,0.10132803]
[1756519128453,0.50250261,107770.0,107760.0,0.10132803]
[1756519129056,0.14170261,107770.0,107760.0,0.10132803]
[1756519129960,0.50250261,107770.0,107760.0,0.10132803]
[1756519130860,0.14170261,107770.0,107760.0,0.10132803]
[1756519131060,0.50250261,107770.0,107760.0,0.10132803]
[1756519131257,0.50250261,107770.0,107760.0,0.46067489]
[1756519131849,0.50250261,107770.0,107760.0,0.10132803]
[1756519132057,0.86184947,107770.0,107760.0,0.10132803]
[1756519132862,0.50250261,107770.0,107760.0,0.71067489]
[1756519133160,0.14170261,107770.0,107760.0,0.71067489]
[1756519133661,0.14170261,107770.0,107760.0,0.35132803]
[1756519134062,0.14170261,107770.0,107760.0,0.71067489]
[1756519134258,0.1190578,107770.0,107760.0,0.71067489]
[1756519136967,0.4798578,107770.0,107760.0,0.71067489]
[1756519138166,0.4798578,107770.0,107760.0,0.35132803]
[1756519138363,0.4798578,107770.0,107760.0,0.71067489]
[1756519138563,0.29325789,107770.0,107760.0,0.71067489]
[1756519139170,0.29325789,107770.0,107760.0,0.41330686]
[1756519139563,0.31567286,107770.0,107720.0,0.46424243]
[1756519139759,0.3608,107730.0,107720.0,0.07433263]
[1756519139968,0.3608,107730.0,107720.0,0.00036]
[1756519140166,0.3608,107730.0,107710.0,0.03075954]
[1756519140167,0.01987,107720.0,107710.0,0.03075954]
[1756519140356,0.37921686,107720.0,107710.0,0.03075954]
[1756519140667,0.74001686,107720.0,107710.0,0.03075954]
[1756519140869,0.02985,107710.0,107700.0,0.04372769]
[1756519141169,0.74999686,107710.0,107700.0,0.04372769]
[1756519141357,0.39065,107710.0,107700.0,0.04372769]
[1756519141557,0.84038168,107710.0,107700.0,0.02315]
[1756519142057,0.84038168,107710.0,107690.0,0.00433]
[1756519142263,0.84038168,107710.0,107700.0,0.05714]
[1756519142860,0.4664755,107710.0,107700.0,0.05714]
[1756519143461,0.1056755,107710.0,107700.0,0.05714]
[1756519143664,0.0941955,107710.0,107700.0,0.50787168]
[1756519143870,0.0941955,107710.0,107700.0,0.75787168]
[1756519144066,0.0758255,107710.0,107700.0,0.75787168]
[1756519144365,0.4157,107710.0,107700.0,0.75787168]
[1756519144570,0.4157,107710.0,107700.0,0.05814]
[1756519144770,0.53676852,107710.0,107700.0,0.50787168]
[1756519145468,0.53676852,107710.0,107700.0,0.05814]
[1756519145762,0.53676852,107710.0,107700.0,0.50787168]
[1756519146264,0.62959642,107710.0,107700.0,0.50787168]
[1756519146869,0.59830642,107710.0,107700.0,0.50787168]
[1756519147461,0.34720246,107710.0,107700.0,0.50787168]
[1756519147668,0.20252394,107710.0,107700.0,1.11867168]
[1756519148364,0.20252394,107710.0,107700.0,0.68929642]
[1756519148567,0.20252394,107710.0,107700.0,1.1390281]
[1756519148568,0.13226112,107710.0,107700.0,1.1390281]
[1756519148772,0.07580322,107710.0,107700.0,1.1390281]
[1756519149067,0.1,107720.0,107710.0,0.03399]
[1756519149272,0.1,107720.0,107710.0,0.86767168]
[1756519149463,0.1,107720.0,107710.0,0.41794]
[1756519149659,0.1,107720.0,107710.0,0.86767168]
[1756519150367,0.13311546,107720.0,107710.0,0.86767168]
[1756519151071,0.13311546,107720.0,107710.0,0.41794]
[1756519151271,0.13311546,107720.0,107710.0,0.86767168]
[1756519151771,0.15672546,107720.0,107710.0,0.86767168]
[1756519152172,0.13311546,107720.0,107710.0,0.41794]
[1756519152373,0.23070991,107720.0,107710.0,0.86767168]
[1756519153277,0.23070991,107720.0,107710.0,0.41794]
[1756519153474,0.23070991,107720.0,107710.0,0.86767168]
[1756519153974,0.62279991,107720.0,107710.0,0.05714]
[1756519154165,0.62279991,107720.0,107710.0,0.50687168]
[1756519154770,0.81789991,107720.0,107680.0,0.3608]
[1756519154968,0.0549,107680.0,107670.0,0.06637638]
[1756519155170,0.03129,107670.0,107660.0,0.02315]
[1756519155374,0.0549,107660.0,107650.0,0.02315]
[1756519155567,0.4157,107660.0,107650.0,0.02315]
[1756519155770,0.4157,107660.0,107650.0,0.47288168]
[1756519156181,0.0549,107660.0,107650.0,0.83368168]
[1756519156579,0.0549,107660.0,107650.0,0.38395]
[1756519156780,0.39209,107670.0,107660.0,0.03177]
[1756519156975,0.4157,107670.0,107660.0,0.05492]
[1756519157372,0.0549,107660.0,107650.0,0.86545168]
[1756519158082,0.02361,107660.0,107650.0,0.86545168]
[1756519158276,0.0549,107660.0,107650.0,0.38395]
[1756519158474,0.0549,107660.0,107650.0,0.41572]
[1756519158884,0.0549,107660.0,107650.0,0.86545168]
[1756519160477,0.0549,107660.0,107650.0,0.86745168]
[1756519160781,0.0549,107660.0,107650.0,0.41772]
[1756519161776,0.0549,107660.0,107650.0,0.86745168]
[1756519162482,0.0750137,107660.0,107650.0,0.86745168]
[1756519162677,0.51093424,107670.0,107650.0,0.83568168]
[1756519162983,0.53454424,107670.0,107660.0,0.50655168]
[1756519163379,0.0549,107660.0,107650.0,0.37856]
[1756519163576,0.0549,107660.0,107650.0,0.82829168]
[1756519163778,0.6657,107660.0,107620.0,0.3608]
[1756519163981,0.39209,107640.0,107610.0,3.2622]
[1756519164187,0.0549,107620.0,107610.0,3.26644]
[1756519164383,0.02361,107620.0,107610.0,3.26644]
[1756519164576,0.08718834,107620.0,107610.0,3.26644]
[1756519164773,0.02361,107620.0,107610.0,1.50052]
[1756519164974,0.0549,107620.0,107610.0,1.50052]
[1756519165173,0.0549,107620.0,107610.0,0.3608]
[1756519165479,0.12994902,107620.0,107610.0,0.3608]
[1756519165677,0.02361,107620.0,107610.0,0.3608]
[1756519166088,0.02361,107620.0,107610.0,0.81053168]
[1756519166588,0.0549,107630.0,107610.0,0.81053168]
[1756519166881,0.0549,107620.0,107610.0,0.81353168]
[1756519167277,0.0549,107620.0,107610.0,0.3638]
[1756519167584,0.02361,107600.0,107590.0,0.344394]
[1756519167789,0.03129,107590.0,107560.0,1.54136973]
[1756519168083,0.4157,107580.0,107560.0,1.86356973]
[1756519168281,0.4157,107570.0,107560.0,0.34800973]
[1756519168478,0.3608,107570.0,107560.0,0.55774141]
[1756519168786,0.3608,107570.0,107560.0,0.47774141]
[1756519168986,0.41784345,107570.0,107560.0,0.47774141]
[1756519169290,0.44913345,107570.0,107560.0,0.47774141]
[1756519169783,0.44913345,107570.0,107560.0,1.63094141]
[1756519170281,0.44913345,107570.0,107560.0,1.18120973]
[1756519170476,0.44913345,107570.0,107560.0,1.63094141]
[1756519170676,0.3608,107580.0,107570.0,0.00081]
[1756519170883,0.3608,107580.0,107570.0,0.45054168]
[1756519171083,0.3608,107580.0,107570.0,0.00081]
[1756519171385,0.3608,107580.0,107570.0,0.45054168]
[1756519171574,0.42734359,107590.0,107570.0,0.45054168]
[1756519171780,0.42113,107580.0,107570.0,0.00081]
[1756519171981,0.06033,107570.0,107560.0,0.49931816]
[1756519172183,0.06033,107570.0,107560.0,1.64867816]
[1756519172681,0.67113,107570.0,107560.0,0.02800973]
[1756519172882,1.12086168,107570.0,107560.0,0.02800973]
[1756519173079,1.12086168,107570.0,107540.0,0.3608]
[1756519173080,0.06033,107550.0,107540.0,0.3608]
[1756519173389,0.06033,107520.0,107510.0,0.51109168]
[1756519173687,0.03368,107510.0,107500.0,1.96612522]
[1756519174079,0.28368,107510.0,107500.0,1.56929522]
[1756519174284,1.09421168,107510.0,107500.0,1.56929522]
[1756519174483,0.64448,107510.0,107500.0,1.41371522]
[1756519174687,1.16053168,107510.0,107480.0,0.3608]
[1756519174888,0.1,107490.0,107480.0,0.87189168]
[1756519175091,0.44973168,107500.0,107480.0,0.42216]
[1756519175389,0.44973168,107500.0,107480.0,0.3608]
[1756519175390,0.44973168,107490.0,107480.0,0.3608]
[1756519175690,0.44973168,107490.0,107450.0,0.44973168]
[1756519175691,1.01053168,107490.0,107450.0,0.42216]
[1756519175888,0.3608,107470.0,107450.0,0.88725]
[1756519176189,0.3548,107470.0,107450.0,0.82589]
[1756519176400,1.06053168,107460.0,107420.0,0.06136]
[1756519176685,1.06053168,107460.0,107440.0,0.06136]
[1756519176686,0.3608,107450.0,107440.0,0.06136]
[1756519176893,0.3608,107450.0,107440.0,0.97618168]
[1756519177090,0.4608,107460.0,107450.0,0.006]
[1756519177487,0.4608,107460.0,107450.0,0.03133]
[1756519177685,0.4608,107460.0,107450.0,0.006]
[1756519177992,1.25958686,107460.0,107450.0,0.006]
[1756519178299,1.25958686,107460.0,107440.0,0.06136]
[1756519178300,0.0930504,107450.0,107440.0,0.06136]
[1756519178483,0.03350278,107490.0,107450.0,0.06136]
[1756519178688,0.1930296,107480.0,107470.0,0.06136]
[1756519178998,0.0930318,107470.0,107460.0,0.52645]
[1756519179299,0.4538318,107470.0,107440.0,0.48481686]
[1756519179487,0.3608,107450.0,107440.0,0.06136]
[1756519179984,0.3608,107460.0,107450.0,0.06136]
[1756519180390,0.4608,107460.0,107450.0,0.06136]
[1756519180597,0.4608,107460.0,107450.0,0.77645]
[1756519180798,0.4608,107460.0,107450.0,1.22523686]
[1756519181092,0.3608,107490.0,107480.0,0.02533]
[1756519181292,0.3608,107490.0,107480.0,0.50112]
[1756519181501,0.43444486,107500.0,107480.0,1.19990686]
[1756519181792,0.3608,107520.0,107490.0,3.02231686]
[1756519181992,0.4608,107520.0,107510.0,0.44878686]
[1756519182190,0.43592626,107520.0,107500.0,0.44878686]
[1756519182393,0.03368,107500.0,107480.0,0.01883386]
[1756519182593,0.75528,107490.0,107480.0,0.46762072]
[1756519182787,0.75528,107490.0,107480.0,0.44878686]
[1756519182993,0.03368,107480.0,107450.0,1.78782326]
[1756519183201,0.40048,107460.0,107450.0,0.46861012]
[1756519183595,0.47380993,107460.0,107450.0,0.001]
[1756519183799,0.46780993,107460.0,107440.0,0.44878686]
[1756519183997,0.3608,107450.0,107430.0,0.01877514]
[1756519184298,0.3608,107450.0,107440.0,0.44878686]
[1756519184496,0.43412993,107460.0,107440.0,1.16387686]
[1756519184797,0.43412993,107460.0,107450.0,1.16387686]
[1756519185003,0.71780993,107460.0,107450.0,0.0187611]
[1756519185302,0.46780993,107460.0,107450.0,0.46754796]
[1756519185594,0.46780993,107460.0,107450.0,0.44878686]
[1756519185799,0.46780993,107460.0,107430.0,0.01877514]
[1756519185800,0.1267384,107440.0,107430.0,0.467562]
[1756519185998,0.4875384,107440.0,107430.0,0.467562]
[1756519186305,0.4875384,107440.0,107430.0,0.932652]
[1756519186498,0.4538533,107450.0,107430.0,1.182652]
[1756519186698,0.3608,107450.0,107440.0,0.91387686]
[1756519186995,0.43712993,107460.0,107440.0,1.16387686]
[1756519187197,0.53017093,107460.0,107450.0,0.91387686]
[1756519187395,0.43712993,107460.0,107450.0,0.91387686]
[1756519187598,0.07632993,107460.0,107450.0,0.71509]
[1756519187793,0.07632993,107460.0,107450.0,1.1689397]
[1756519187991,0.39448,107490.0,107460.0,0.0930357]
[1756519188204,0.093015,107490.0,107480.0,0.91087686]
[1756519188406,0.487495,107490.0,107480.0,0.46209]
[1756519188701,0.4538116,107500.0,107480.0,1.16087686]
[1756519188902,0.39448,107510.0,107490.0,0.4810966]
[1756519189108,0.52892086,107520.0,107500.0,0.91087686]
[1756519189303,0.52892086,107520.0,107500.0,0.44878686]
[1756519189304,0.0929977,107510.0,107500.0,0.44878686]
[1756519189699,0.0929977,107510.0,107500.0,1.16087686]
[1756519190207,0.43592626,107520.0,107500.0,1.52167686]
[1756519190398,0.07512626,107520.0,107510.0,0.91087686]
[1756519190600,0.4874635,107530.0,107510.0,1.27167686]
[1756519190601,0.4537808,107530.0,107510.0,1.27167686]
[1756519190812,0.4874605,107530.0,107520.0,0.46209]
[1756519191105,0.4874605,107530.0,107520.0,0.91087686]
[1756519191497,0.0929891,107520.0,107510.0,0.44878686]
[1756519191703,0.0929978,107510.0,107500.0,1.15132]
[1756519191898,0.52639436,107510.0,107480.0,0.3608]
[1756519192107,0.093012,107500.0,107480.0,0.3608]
[1756519192311,0.453812,107500.0,107490.0,0.44878686]
[1756519192505,0.453812,107500.0,107490.0,0.46209]
[1756519192506,0.487492,107500.0,107490.0,0.46209]
[1756519192705,0.487492,107500.0,107480.0,1.60238686]
[1756519193007,0.43339656,107510.0,107490.0,0.91087686]
[1756519193208,0.43339656,107510.0,107500.0,0.91087686]
[1756519193601,0.07259656,107510.0,107500.0,0.71209]
[1756519193810,0.4537969,107510.0,107500.0,1.16087686]
[1756519194103,0.4537969,107510.0,107500.0,0.71209]
[1756519194402,0.4537969,107510.0,107500.0,1.16087686]
[1756519194602,0.3608,107510.0,107500.0,1.16087686]
[1756519194808,0.453791,107520.0,107500.0,1.52167686]
[1756519195007,0.52664116,107520.0,107510.0,0.91087686]
[1756519196100,0.43365016,107520.0,107510.0,0.91087686]
[1756519196402,0.43365016,107520.0,107510.0,0.71209]
[1756519196403,0.07485016,107520.0,107510.0,0.71209]
[1756519196601,0.56231876,107520.0,107510.0,1.16087686]
[1756519197003,0.56231876,107520.0,107510.0,0.46209]
[1756519197205,0.07485016,107520.0,107510.0,0.91087686]
[1756519197402,0.43565016,107520.0,107510.0,0.91087686]
[1756519197703,0.52863876,107520.0,107510.0,2.06879686]
[1756519197911,0.52863876,107520.0,107510.0,0.91087686]
[1756519199098,0.07485016,107520.0,107510.0,1.00387416]
[1756519199305,0.16783876,107520.0,107510.0,0.91087686]
[1756519200314,0.002,107520.0,107510.0,1.61467436]
[1756519200508,0.002,107520.0,107510.0,1.16087686]
[1756519200810,0.3608,107540.0,107510.0,1.16087686]
[1756519200811,0.3608,107540.0,107520.0,0.01526]
[1756519201007,0.4874474,107550.0,107540.0,0.01526]
[1756519201201,0.4874474,107550.0,107540.0,0.47735]
[1756519201406,0.4874474,107550.0,107540.0,0.46404686]
[1756519201407,0.3608,107550.0,107540.0,0.46404686]
[1756519201606,0.3608,107560.0,107550.0,0.01526]
[1756519201607,0.4537544,107560.0,107550.0,0.01526]
[1756519201806,0.4537544,107560.0,107550.0,0.92613686]
[1756519202201,0.52915757,107560.0,107550.0,0.92613686]
[1756519202604,0.07540317,107560.0,107550.0,1.62989996]
[1756519202806,0.3608,107570.0,107560.0,0.01526]
[1756519202807,0.4537465,107570.0,107560.0,0.01526]
[1756519203005,0.4537465,107570.0,107560.0,0.92613686]
[1756519203006,0.3608,107570.0,107560.0,0.92613686]
[1756519203312,0.3608,107580.0,107570.0,0.01526]
[1756519203609,0.4537313,107590.0,107580.0,0.47735]
[1756519203806,0.4537313,107590.0,107580.0,0.92613686]
[1756519204705,0.4537313,107590.0,107580.0,2.08853686]
[1756519204901,0.43689593,107590.0,107580.0,2.08853686]
[1756519205100,0.07609593,107590.0,107580.0,2.79227406]
[1756519205410,0.3608,107600.0,107590.0,0.01526]
[1756519205609,0.4537199,107600.0,107590.0,2.08909686]
[1756519205800,0.4537199,107600.0,107590.0,0.92613686]
[1756519206006,0.4925699,107600.0,107590.0,0.91087686]
[1756519206211,0.0929372,107580.0,107570.0,0.01526]
[1756519206407,0.4925872,107580.0,107570.0,1.62748686]
[1756519206610,0.0929551,107560.0,107550.0,0.3608]
[1756519206912,0.5249944,107560.0,107550.0,1.63764686]
[1756519207306,0.5249944,107560.0,107550.0,2.11499686]
[1756519207913,0.4861444,107560.0,107550.0,2.11499686]
[1756519208522,0.43430764,107570.0,107560.0,0.03968]
[1756519208811,0.4537374,107580.0,107570.0,0.03968]
[1756519209109,0.4537374,107580.0,107560.0,0.91087686]
[1756519209110,0.1641856,107570.0,107560.0,0.44878686]
[1756519209313,0.07124,107510.0,107500.0,0.01526]
[1756519209519,0.8858446,107510.0,107500.0,0.47735]
[1756519209813,0.8858446,107510.0,107500.0,0.00465]
[1756519209814,1.01045,107510.0,107500.0,0.00465]
[1756519210512,0.76045,107510.0,107500.0,0.93078686]
[1756519210715,0.7216,107510.0,107500.0,0.482]
[1756519211011,0.7216,107510.0,107500.0,0.93078686]
[1756519211407,0.3608,107510.0,107500.0,1.18078686]
[1756519211610,0.3608,107530.0,107500.0,2.92592276]
[1756519211806,0.3608,107530.0,107520.0,0.46209]
[1756519212012,0.3608,107530.0,107520.0,0.91087686]
[1756519212214,0.3608,107530.0,107520.0,0.46209]
[1756519212414,0.3608,107530.0,107520.0,0.91087686]
[1756519213209,0.1318468,107510.0,107500.0,1.77333]
[1756519213414,0.8534468,107510.0,107500.0,1.77333]
[1756519213709,0.76045,107510.0,107500.0,2.22211686]
[1756519214015,0.7216,107510.0,107500.0,2.93420686]
[1756519214408,0.7216,107510.0,107500.0,2.68420686]
[1756519214612,0.8534468,107510.0,107500.0,3.89472686]
[1756519214812,0.8534468,107510.0,107500.0,2.98373]
[1756519215012,0.8534468,107510.0,107500.0,1.77333]
[1756519215214,1.1034468,107510.0,107500.0,1.77333]
[1756519215613,0.8534468,107510.0,107500.0,2.68420686]
[1756519216113,0.8145968,107510.0,107500.0,2.93420686]
[1756519216416,0.65657809,107510.0,107500.0,2.68420686]
[1756519216812,0.61772809,107510.0,107500.0,2.68420686]
[1756519217008,0.61772809,107510.0,107500.0,2.22211686]
[1756519217009,0.65657809,107510.0,107500.0,2.22211686]
[1756519217216,0.65657809,107510.0,107500.0,2.98309]
[1756519217827,0.65657809,107510.0,107500.0,3.43187686]
[1756519218514,0.65657809,107510.0,107500.0,2.98309]
[1756519218717,0.61772809,107510.0,107500.0,3.89480686]
[1756519219019,0.65657809,107510.0,107500.0,3.44518]
[1756519219216,0.65657809,107510.0,107500.0,3.89396686]
[1756519219514,0.90657809,107510.0,107500.0,2.98193]
[1756519219820,0.90657809,107510.0,107500.0,0.00465]
[1756519220714,0.90657809,107510.0,107500.0,1.67778]
[1756519220715,0.61772809,107510.0,107500.0,1.67778]
[1756519220914,0.65657809,107510.0,107500.0,0.45343686]
[1756519221115,0.90657809,107510.0,107500.0,0.00465]
[1756519221512,0.65657809,107510.0,107500.0,0.00465]
[1756519221712,0.68896809,107510.0,107500.0,0.00465]
[1756519222516,0.69096809,107510.0,107500.0,0.00465]
[1756519222920,0.69096809,107510.0,107440.0,0.00549]
[1756519222921,0.39965,107500.0,107440.0,0.00549]
[1756519223114,0.3608,107460.0,107450.0,0.00549]
[1756519223419,0.03885,107450.0,107440.0,1.2383612]
[1756519223620,0.39965,107450.0,107440.0,1.68714806]
[1756519223918,0.39965,107450.0,107440.0,2.14923806]
[1756519224221,0.03885,107450.0,107440.0,1.7004512]
[1756519224518,0.3608,107470.0,107450.0,0.00549]
[1756519224815,0.3608,107480.0,107470.0,0.00549]
[1756519225015,0.3608,107480.0,107470.0,2.13532686]
[1756519225212,0.3608,107480.0,107470.0,2.38532686]
[1756519225518,0.39965,107490.0,107470.0,0.91087686]
[1756519225721,0.3608,107500.0,107480.0,0.44878686]
[1756519226016,0.39965,107490.0,107470.0,0.80958686]
[1756519226218,0.39965,107480.0,107470.0,0.45427686]
[1756519226423,0.47424616,107480.0,107470.0,0.00549]
[1756519226717,0.47424616,107480.0,107470.0,2.14096686]
[1756519226921,0.43539616,107480.0,107470.0,2.39096686]
[1756519227621,0.07459616,107480.0,107470.0,2.39096686]
[1756519227816,0.3608,107490.0,107480.0,0.00549]
[1756519228026,0.3608,107490.0,107480.0,0.91636686]
[1756519228825,0.4538139,107490.0,107480.0,1.16636686]
[1756519229215,0.4538139,107490.0,107480.0,0.46758]
[1756519229518,0.4926639,107490.0,107480.0,1.68974]
[1756519229821,0.56591385,107490.0,107480.0,0.91087686]
[1756519230011,0.1318725,107480.0,107470.0,1.6913251]
[1756519230216,0.4926725,107480.0,107470.0,1.6913251]
[1756519230416,0.4926725,107480.0,107470.0,2.1589051]
[1756519230816,0.0930225,107480.0,107470.0,2.1589051]
[1756519231118,0.4538138,107490.0,107480.0,0.00485]
[1756519231313,0.4538138,107490.0,107480.0,0.91572686]
[1756519231519,0.4538138,107490.0,107480.0,0.46694]
[1756519231719,0.3608,107490.0,107480.0,0.91572686]
[1756519231922,0.3608,107500.0,107490.0,0.00485]
[1756519232219,0.0930054,107500.0,107490.0,2.50000686]
[1756519232418,0.4538003,107510.0,107500.0,0.00485]
[1756519232612,0.0930003,107510.0,107500.0,0.91572686]
[1756519232826,0.0930003,107510.0,107500.0,0.46694]
[1756519233018,0.0930003,107510.0,107500.0,0.91572686]
[1756519233019,0.16881048,107510.0,107500.0,0.91572686]
[1756519233327,0.4537913,107520.0,107510.0,0.00485]
[1756519233528,0.4537913,107520.0,107510.0,2.13752686]
[1756519233722,0.82737318,107520.0,107510.0,2.13267686]
[1756519234324,0.82737318,107520.0,107510.0,1.2218]
[1756519234720,0.82737318,107520.0,107510.0,1.68389]
[1756519235122,0.1415271,107510.0,107500.0,1.68936531]
[1756519235329,0.5023271,107510.0,107500.0,0.01869845]
[1756519235522,0.7523271,107510.0,107500.0,0.01869845]
[1756519237125,0.0930145,107490.0,107480.0,1.66806686]
[1756519237423,0.5023445,107490.0,107480.0,1.66682686]
[1756519237629,0.5023445,107490.0,107480.0,2.12891686]
[1756519237925,0.5023445,107490.0,107480.0,0.91087686]